[Event "*** SCC Grand Prix: Titled Tuesday Blitz"]
[Site "Chess.com"]
[Date "2020.06.02"]
[Round "5"]
[White "WinstonSilvakov"]
[Black "Denis_Palkovich"]
[Result "0-1"]
[WhiteElo "2068"]
[BlackElo "2321"]
[TimeControl "180+1"]
[EndTime "11:00:01 PDT"]
[Termination "Denis_Palkovich won on time"]

1. e4 {[%clk 0:03:00.9]} 1... d5 {[%clk 0:02:55.7]} 2. d4 {[%clk 0:02:59.8]}
2... dxe4 {[%clk 0:02:55.3]} 3. Nc3 {[%clk 0:02:59.7]} 3... Nf6 {[%clk
0:02:49.7]} 4. Bg5 {[%clk 0:02:57.7]} 4... Bf5 {[%clk 0:02:28.9]} 5. Qe2 {[%clk
0:02:56.6]} 5... c6 {[%clk 0:02:18.8]} 6. Kd1 {[%clk 0:02:47.2]} 6... Qxd4+
{[%clk 0:02:03.7]} 7. Ke1 {[%clk 0:02:45.7]} 7... Qb4 {[%clk 0:01:53.3]} 8. Rb1
{[%clk 0:02:39.9]} 8... Nbd7 {[%clk 0:01:51.9]} 9. a3 {[%clk 0:02:35]} 9... Qb6
{[%clk 0:01:49.4]} 10. Be3 {[%clk 0:02:27.1]} 10... Qc7 {[%clk 0:01:49.2]} 11.
h3 {[%clk 0:02:26.1]} 11... e6 {[%clk 0:01:40.5]} 12. g4 {[%clk 0:02:24.7]}
12... Bg6 {[%clk 0:01:40.9]} 13. Bg2 {[%clk 0:02:23.2]} 13... Bc5 {[%clk
0:01:26.1]} 14. Bxc5 {[%clk 0:02:05.7]} 14... Nxc5 {[%clk 0:01:26.1]} 15. g5
{[%clk 0:02:05.2]} 15... Nd5 {[%clk 0:01:16.6]} 16. Qe3 {[%clk 0:01:56.5]} 16...
Nxc3 {[%clk 0:00:15.1]} 17. Qxc3 {[%clk 0:01:53.8]} 17... Qb6 {[%clk 0:00:14.1]}
18. Qxg7 {[%clk 0:01:49]} 18... O-O-O {[%clk 0:00:14.2]} 19. Qc3 {[%clk
0:01:47]} 19... h6 {[%clk 0:00:09.5]} 20. gxh6 {[%clk 0:01:43.7]} 20... Rxh6
{[%clk 0:00:09.3]} 21. Ne2 {[%clk 0:01:44.6]} 21... f5 {[%clk 0:00:08.3]} 22.
Nf4 {[%clk 0:01:43.6]} 22... Bf7 {[%clk 0:00:08.8]} 23. Ne2 {[%clk 0:01:42.8]}
23... Nd7 {[%clk 0:00:07.4]} 24. Nd4 {[%clk 0:01:42.4]} 24... Qc5 {[%clk
0:00:07.2]} 25. Qxc5 {[%clk 0:01:41.8]} 25... Nxc5 {[%clk 0:00:08.1]} 26. Nb3
{[%clk 0:01:41.4]} 26... Nxb3 {[%clk 0:00:08.1]} 27. cxb3 {[%clk 0:01:41.8]}
27... e5 {[%clk 0:00:09]} 28. Ke2 {[%clk 0:01:42.1]} 28... Bxb3 {[%clk
0:00:07.9]} 29. Rhc1 {[%clk 0:01:41.4]} 29... Rg6 {[%clk 0:00:07]} 30. Bh1
{[%clk 0:01:38.8]} 30... Rd3 {[%clk 0:00:06.7]} 31. Rc5 {[%clk 0:01:37.4]} 31...
Rd5 {[%clk 0:00:05.6]} 32. Rc3 {[%clk 0:01:36.2]} 32... Ba4 {[%clk 0:00:05.1]}
33. Rbc1 {[%clk 0:01:31.4]} 33... Kd7 {[%clk 0:00:04.3]} 34. Rg3 {[%clk
0:01:31.8]} 34... Rxg3 {[%clk 0:00:03.7]} 35. fxg3 {[%clk 0:01:31.6]} 35... Rd3
{[%clk 0:00:03.5]} 36. Rc3 {[%clk 0:01:30.3]} 36... Rxc3 {[%clk 0:00:03.5]} 37.
bxc3 {[%clk 0:01:30]} 37... Kd6 {[%clk 0:00:04]} 38. h4 {[%clk 0:01:30.3]} 38...
Ke6 {[%clk 0:00:03]} 39. g4 {[%clk 0:01:30.6]} 39... fxg4 {[%clk 0:00:02.2]} 40.
Bxe4 {[%clk 0:01:30.9]} 40... Kf6 {[%clk 0:00:01.9]} 41. Bd3 {[%clk 0:01:29.7]}
41... Bb3 {[%clk 0:00:01.9]} 42. Ke3 {[%clk 0:01:29.6]} 42... Bd5 {[%clk
0:00:02.3]} 43. Kf2 {[%clk 0:01:29.5]} 43... e4 {[%clk 0:00:01.9]} 44. Kg3
{[%clk 0:01:29.8]} 44... Ke5 {[%clk 0:00:02.7]} 45. Be2 {[%clk 0:01:28.1]} 45...
e3 {[%clk 0:00:01.8]} 46. Bxg4 {[%clk 0:01:29]} 46... Ke4 {[%clk 0:00:01.9]} 47.
h5 {[%clk 0:01:26.4]} 47... Kd3 {[%clk 0:00:02]} 48. h6 {[%clk 0:01:26.4]} 48...
Bg8 {[%clk 0:00:02.5]} 49. Bf5+ {[%clk 0:01:21.1]} 49... Kd2 {[%clk 0:00:03.1]}
50. Bg4 {[%clk 0:01:17.3]} 50... e2 {[%clk 0:00:03.1]} 51. Bxe2 {[%clk
0:01:15.7]} 51... Kxe2 {[%clk 0:00:04]} 52. Kf4 {[%clk 0:01:16.4]} 52... Bh7
{[%clk 0:00:04.1]} 53. Kg5 {[%clk 0:01:17.3]} 53... Kd3 {[%clk 0:00:04.3]} 54.
Kf6 {[%clk 0:01:18.2]} 54... Kxc3 {[%clk 0:00:04.3]} 55. Kg7 {[%clk 0:01:19.1]}
55... Be4 {[%clk 0:00:03.9]} 56. Kf6 {[%clk 0:01:18.5]} 56... Kb3 {[%clk
0:00:04]} 57. Ke5 {[%clk 0:01:18.8]} 57... Bb1 {[%clk 0:00:04.5]} 58. Kd6 {[%clk
0:01:18.2]} 58... Kxa3 {[%clk 0:00:04.8]} 59. Kc5 {[%clk 0:01:17.6]} 59... a5
{[%clk 0:00:04.7]} 60. Kd4 {[%clk 0:01:17.5]} 60... a4 {[%clk 0:00:05]} 61. Kc3
{[%clk 0:01:17.5]} 61... Bh7 {[%clk 0:00:04.8]} 62. Kd2 {[%clk 0:01:17.4]} 62...
Kb2 {[%clk 0:00:05]} 63. Ke3 {[%clk 0:01:16.3]} 63... a3 {[%clk 0:00:05.9]} 64.
Kd4 {[%clk 0:01:17.2]} 64... a2 {[%clk 0:00:06]} 65. Kc4 {[%clk 0:01:18.1]}
65... a1=Q {[%clk 0:00:06.9]} 0-1

[Event "*** SCC Grand Prix: Titled Tuesday Blitz"]
[Site "Chess.com"]
[Date "2020.06.02"]
[Round "5"]
[White "2nd_life"]
[Black "Ba_clbaf_osed_ingo_3v21"]
[Result "1-0"]
[WhiteElo "2437"]
[BlackElo "2632"]
[TimeControl "180+1"]
[EndTime "11:00:03 PDT"]
[Termination "2nd_life won on time"]

1. e4 {[%clk 0:03:00.9]} 1... c5 {[%clk 0:02:58.7]} 2. Nf3 {[%clk 0:03:00.4]}
2... d6 {[%clk 0:02:51.3]} 3. Bb5+ {[%clk 0:02:51.2]} 3... Nd7 {[%clk
0:02:50.9]} 4. O-O {[%clk 0:02:47.1]} 4... a6 {[%clk 0:02:50.4]} 5. Bxd7+ {[%clk
0:02:45.9]} 5... Bxd7 {[%clk 0:02:51.3]} 6. c4 {[%clk 0:02:40.6]} 6... e5 {[%clk
0:02:50.6]} 7. Nc3 {[%clk 0:02:34.8]} 7... Ne7 {[%clk 0:02:50.4]} 8. d3 {[%clk
0:02:33.6]} 8... Nc6 {[%clk 0:02:49.7]} 9. Nd5 {[%clk 0:02:27.1]} 9... Be7
{[%clk 0:02:48.9]} 10. Rb1 {[%clk 0:02:21.2]} 10... b5 {[%clk 0:02:45.7]} 11. b3
{[%clk 0:02:17.8]} 11... O-O {[%clk 0:02:37.3]} 12. Ne1 {[%clk 0:01:59]} 12...
f5 {[%clk 0:02:25.6]} 13. f4 {[%clk 0:01:57.4]} 13... Nd4 {[%clk 0:02:16.4]} 14.
Nc2 {[%clk 0:01:47.7]} 14... Be6 {[%clk 0:02:04]} 15. Nxd4 {[%clk 0:01:46.5]}
15... cxd4 {[%clk 0:02:04.9]} 16. Qe2 {[%clk 0:01:30.4]} 16... fxe4 {[%clk
0:01:49.7]} 17. Qxe4 {[%clk 0:01:21]} 17... Bf5 {[%clk 0:01:37]} 18. Qe2 {[%clk
0:01:20.6]} 18... Bf6 {[%clk 0:01:07.5]} 19. fxe5 {[%clk 0:01:14.8]} 19... Bxe5
{[%clk 0:01:08.3]} 20. Bf4 {[%clk 0:01:09.4]} 20... Qh4 {[%clk 0:01:02.1]} 21.
g3 {[%clk 0:00:57.7]} 21... Qg4 {[%clk 0:00:55.6]} 22. Qxg4 {[%clk 0:00:48.1]}
22... Bxg4 {[%clk 0:00:54]} 23. Ne7+ {[%clk 0:00:43]} 23... Kh8 {[%clk
0:00:51.8]} 24. Bxe5 {[%clk 0:00:42.7]} 24... dxe5 {[%clk 0:00:52.6]} 25. Rxf8+
{[%clk 0:00:42]} 25... Rxf8 {[%clk 0:00:51.1]} 26. Rf1 {[%clk 0:00:42.6]} 26...
Re8 {[%clk 0:00:38.6]} 27. Nc6 {[%clk 0:00:33.7]} 27... bxc4 {[%clk 0:00:33.4]}
28. bxc4 {[%clk 0:00:12.9]} 28... Be2 {[%clk 0:00:16.4]} 29. Re1 {[%clk
0:00:11.7]} 29... Bxd3 {[%clk 0:00:16.6]} 30. Rxe5 {[%clk 0:00:09.5]} 30... Rxe5
{[%clk 0:00:11.9]} 31. Nxe5 {[%clk 0:00:08.8]} 31... Bb1 {[%clk 0:00:12.3]} 32.
a3 {[%clk 0:00:07.8]} 32... Kg8 {[%clk 0:00:08.7]} 33. Nf3 {[%clk 0:00:07.2]}
33... d3 {[%clk 0:00:06.7]} 34. Kf2 {[%clk 0:00:07.5]} 34... Kf7 {[%clk
0:00:07]} 35. Ke3 {[%clk 0:00:07.8]} 35... Kf6 {[%clk 0:00:06.8]} 36. Ne1 {[%clk
0:00:06.7]} 36... Ba2 {[%clk 0:00:06.6]} 37. Kxd3 {[%clk 0:00:05.8]} 37... Ke5
{[%clk 0:00:04.9]} 38. Nf3+ {[%clk 0:00:06.1]} 38... Kd6 {[%clk 0:00:05.1]} 39.
Kd4 {[%clk 0:00:05.8]} 39... h6 {[%clk 0:00:05.2]} 40. c5+ {[%clk 0:00:06]}
40... Kc7 {[%clk 0:00:05.6]} 41. Ne5 {[%clk 0:00:06.4]} 41... Be6 {[%clk
0:00:05.9]} 42. h4 {[%clk 0:00:06.5]} 42... g5 {[%clk 0:00:05.9]} 43. hxg5
{[%clk 0:00:06]} 43... hxg5 {[%clk 0:00:06.8]} 44. Nf3 {[%clk 0:00:06]} 44... g4
{[%clk 0:00:07.2]} 45. Ne5 {[%clk 0:00:06.5]} 45... Bf5 {[%clk 0:00:07.6]} 46.
Kc3 {[%clk 0:00:06.8]} 46... Be6 {[%clk 0:00:07.2]} 47. Kb4 {[%clk 0:00:07.2]}
47... Bc8 {[%clk 0:00:03.6]} 48. a4 {[%clk 0:00:07.5]} 48... Bb7 {[%clk
0:00:03.5]} 49. a5 {[%clk 0:00:07.8]} 49... Bc8 {[%clk 0:00:04]} 50. Kc3 {[%clk
0:00:08.1]} 50... Be6 {[%clk 0:00:04.6]} 51. Kd4 {[%clk 0:00:08.4]} 51... Bf5
{[%clk 0:00:05.1]} 52. Kc4 {[%clk 0:00:04.7]} 52... Be6+ {[%clk 0:00:05.3]} 53.
Kd3 {[%clk 0:00:05]} 53... Bf5+ {[%clk 0:00:05.4]} 54. Kd4 {[%clk 0:00:05.4]}
54... Be6 {[%clk 0:00:06.3]} 55. Ke4 {[%clk 0:00:05.7]} 55... Bc8 {[%clk
0:00:05.3]} 56. Kd5 {[%clk 0:00:05.4]} 56... Bf5 {[%clk 0:00:04.8]} 57. c6
{[%clk 0:00:05.1]} 57... Bb1 {[%clk 0:00:03.7]} 58. Nxg4 {[%clk 0:00:04.1]}
58... Ba2+ {[%clk 0:00:04.1]} 59. Kc5 {[%clk 0:00:04.4]} 59... Be6 {[%clk
0:00:04.2]} 60. Ne5 {[%clk 0:00:04.7]} 60... Bf5 {[%clk 0:00:04.4]} 61. g4
{[%clk 0:00:05.1]} 61... Be4 {[%clk 0:00:04.8]} 62. g5 {[%clk 0:00:05.4]} 62...
Bh7 {[%clk 0:00:04.5]} 63. g6 {[%clk 0:00:05.7]} 63... Bg8 {[%clk 0:00:05.1]}
64. Ng4 {[%clk 0:00:05.8]} 64... Be6 {[%clk 0:00:03.3]} 65. Nf6 {[%clk
0:00:05.6]} 65... Kb8 {[%clk 0:00:02.6]} 66. Kd6 {[%clk 0:00:04.8]} 66... Bb3
{[%clk 0:00:01.6]} 67. Nd5 {[%clk 0:00:03.4]} 1-0

[Event "*** SCC Grand Prix: Titled Tuesday Blitz"]
[Site "Chess.com"]
[Date "2020.06.02"]
[Round "5"]
[White "francyIM"]
[Black "artooon"]
[Result "1/2-1/2"]
[WhiteElo "2664"]
[BlackElo "2731"]
[TimeControl "180+1"]
[EndTime "11:00:06 PDT"]
[Termination "Game drawn by agreement"]

1. d4 {[%clk 0:02:54.8]} 1... Nf6 {[%clk 0:02:59.6]} 2. c4 {[%clk 0:02:54.7]}
2... e6 {[%clk 0:02:59.7]} 3. Nc3 {[%clk 0:02:54.3]} 3... Bb4 {[%clk 0:02:58.4]}
4. f3 {[%clk 0:02:54.4]} 4... c5 {[%clk 0:02:57.8]} 5. d5 {[%clk 0:02:54.4]}
5... b5 {[%clk 0:02:58]} 6. e4 {[%clk 0:02:53.3]} 6... O-O {[%clk 0:02:58.1]} 7.
Nh3 {[%clk 0:02:51.5]} 7... bxc4 {[%clk 0:02:56.6]} 8. Bxc4 {[%clk 0:02:52.4]}
8... exd5 {[%clk 0:02:56.7]} 9. Bxd5 {[%clk 0:02:52.4]} 9... Nxd5 {[%clk
0:02:57.1]} 10. Qxd5 {[%clk 0:02:53.3]} 10... Qb6 {[%clk 0:02:50.6]} 11. Bf4
{[%clk 0:02:24.7]} 11... Nc6 {[%clk 0:02:34.9]} 12. O-O {[%clk 0:02:22.5]} 12...
Ba6 {[%clk 0:02:22.7]} 13. Rfd1 {[%clk 0:02:20]} 13... Nd4 {[%clk 0:02:21.9]}
14. Be5 {[%clk 0:02:01.7]} 14... Bb7 {[%clk 0:02:07.6]} 15. Qd6 {[%clk
0:01:52.8]} 15... Rfe8 {[%clk 0:01:50.7]} 16. Qxb6 {[%clk 0:01:45.6]} 16... axb6
{[%clk 0:01:51.6]} 17. Bxd4 {[%clk 0:01:45.3]} 17... cxd4 {[%clk 0:01:52.5]} 18.
Nb5 {[%clk 0:01:45.8]} 18... d5 {[%clk 0:01:44.7]} 19. exd5 {[%clk 0:01:36.7]}
19... Ra5 {[%clk 0:01:27.1]} 20. Nxd4 {[%clk 0:01:34.8]} 20... Rxd5 {[%clk
0:01:25.9]} 21. Nb3 {[%clk 0:01:35]} 21... h6 {[%clk 0:01:19.9]} 22. Nf4 {[%clk
0:01:33.3]} 22... Rg5 {[%clk 0:01:11.1]} 23. Rd4 {[%clk 0:01:23.2]} 23... Bf8
{[%clk 0:01:02.3]} 24. Rf1 {[%clk 0:01:22.1]} 24... Rb5 {[%clk 0:00:57.1]} 25.
Rd2 {[%clk 0:01:21.2]} 25... Rf5 {[%clk 0:00:52.2]} 26. Ne2 {[%clk 0:01:21.1]}
26... Re3 {[%clk 0:00:50.6]} 27. Ned4 {[%clk 0:01:18.9]} 27... Rd5 {[%clk
0:00:49.9]} 28. Rfd1 {[%clk 0:01:18.5]} 28... Bb4 {[%clk 0:00:47.3]} 29. Rd3
{[%clk 0:01:17.6]} 29... Rxd3 {[%clk 0:00:47.2]} 30. Rxd3 {[%clk 0:01:18.5]}
30... Ba6 {[%clk 0:00:45.9]} 31. Re3 {[%clk 0:01:18]} 31... Bc4 {[%clk
0:00:42.5]} 32. a3 {[%clk 0:01:13.1]} 32... Bc5 {[%clk 0:00:33.2]} 33. Nxc5
{[%clk 0:01:12.5]} 33... Rxd4 {[%clk 0:00:33.7]} 34. Ne4 {[%clk 0:01:11.2]}
34... Rd1+ {[%clk 0:00:33.3]} 35. Kf2 {[%clk 0:01:11.3]} 35... Rb1 {[%clk
0:00:33.1]} 36. b4 {[%clk 0:01:08.5]} 36... Rb2+ {[%clk 0:00:32.2]} 37. Kg3
{[%clk 0:01:07.9]} 37... g5 {[%clk 0:00:31.7]} 38. Nd6 {[%clk 0:01:06.9]} 38...
Bf1 {[%clk 0:00:29.9]} 39. f4 {[%clk 0:01:04.6]} 39... Rxg2+ {[%clk 0:00:29]}
40. Kf3 {[%clk 0:01:04.8]} 40... Rxh2 {[%clk 0:00:27.5]} 41. fxg5 {[%clk
0:01:04.1]} 41... hxg5 {[%clk 0:00:28.4]} 42. Kg4 {[%clk 0:01:01.7]} 42... Rg2+
{[%clk 0:00:26.6]} 43. Kf5 {[%clk 0:01:01.4]} 43... g4 {[%clk 0:00:24.8]} 44.
Ne8 {[%clk 0:01:00.7]} 44... Be2 {[%clk 0:00:23]} 45. Nf6+ {[%clk 0:01:00.6]}
45... Kg7 {[%clk 0:00:23.3]} 46. Kg5 {[%clk 0:00:58.6]} 46... Rf2 {[%clk
0:00:17.4]} 47. Nh5+ {[%clk 0:00:57.2]} 47... Kf8 {[%clk 0:00:16.9]} 48. Nf6
{[%clk 0:00:56.5]} 48... Kg7 {[%clk 0:00:15.7]} 49. Nh5+ {[%clk 0:00:53.7]}
49... Kf8 {[%clk 0:00:16]} 50. Rc3 {[%clk 0:00:54.1]} 50... Rf3 {[%clk
0:00:14.3]} 51. Rc7 {[%clk 0:00:51.3]} 51... g3 {[%clk 0:00:12.4]} 52. Rc8+
{[%clk 0:00:45.2]} 52... Ke7 {[%clk 0:00:12.2]} 53. Rc2 {[%clk 0:00:45.2]} 53...
Re3 {[%clk 0:00:08.7]} 54. Nf4 {[%clk 0:00:39.7]} 54... Bf3 {[%clk 0:00:07.4]}
55. Kh4 {[%clk 0:00:37.3]} 55... g2 {[%clk 0:00:07.3]} 56. Nxg2 {[%clk
0:00:33.9]} 56... Bxg2 {[%clk 0:00:07.8]} 57. Rxg2 {[%clk 0:00:34.8]} 57... Rxa3
{[%clk 0:00:08.6]} 58. Rg4 {[%clk 0:00:35]} 58... f5 {[%clk 0:00:07.9]} 59. Rg6
{[%clk 0:00:34.6]} 59... b5 {[%clk 0:00:06.1]} 60. Rb6 {[%clk 0:00:34]} 60...
Rb3 {[%clk 0:00:06.3]} 61. Rxb5 {[%clk 0:00:34]} 61... Kf6 {[%clk 0:00:06.7]}
62. Rb8 {[%clk 0:00:33.3]} 62... f4 {[%clk 0:00:06.2]} 63. Kg4 {[%clk
0:00:32.6]} 63... Ke5 {[%clk 0:00:06.7]} 64. Re8+ {[%clk 0:00:32.3]} 64... Kd5
{[%clk 0:00:05.5]} 65. Kxf4 {[%clk 0:00:31.4]} 65... Rxb4+ {[%clk 0:00:05.5]}
1/2-1/2

[Event "*** SCC Grand Prix: Titled Tuesday Blitz"]
[Site "Chess.com"]
[Date "2020.06.02"]
[Round "5"]
[White "Escanor89"]
[Black "bascheyaro"]
[Result "0-1"]
[WhiteElo "2567"]
[BlackElo "2742"]
[TimeControl "180+1"]
[EndTime "11:00:07 PDT"]
[Termination "bascheyaro won on time"]

1. c4 {[%clk 0:03:00.9]} 1... e5 {[%clk 0:03:00]} 2. Nc3 {[%clk 0:03:00.7]} 2...
Nc6 {[%clk 0:03:00.5]} 3. Nf3 {[%clk 0:03:00.6]} 3... g6 {[%clk 0:03:01]} 4. g3
{[%clk 0:02:58.1]} 4... Bg7 {[%clk 0:03:00.9]} 5. Bg2 {[%clk 0:02:58.2]} 5...
Nge7 {[%clk 0:03:01.1]} 6. O-O {[%clk 0:02:57.2]} 6... O-O {[%clk 0:03:01.3]} 7.
d3 {[%clk 0:02:56.7]} 7... a6 {[%clk 0:02:53.7]} 8. Rb1 {[%clk 0:02:53.2]} 8...
b5 {[%clk 0:02:53.2]} 9. b3 {[%clk 0:02:41.1]} 9... b4 {[%clk 0:02:50.3]} 10.
Na4 {[%clk 0:02:39.3]} 10... d6 {[%clk 0:02:49.5]} 11. Bb2 {[%clk 0:02:34.3]}
11... Rb8 {[%clk 0:02:48.9]} 12. d4 {[%clk 0:02:32.6]} 12... e4 {[%clk
0:02:47.8]} 13. Nd2 {[%clk 0:02:29.2]} 13... f5 {[%clk 0:02:47.9]} 14. d5 {[%clk
0:02:25.9]} 14... Ne5 {[%clk 0:02:48.1]} 15. f4 {[%clk 0:02:19.9]} 15... Ng4
{[%clk 0:02:46.7]} 16. Bxg7 {[%clk 0:02:17.4]} 16... Ne3 {[%clk 0:02:40.4]} 17.
Qc1 {[%clk 0:02:16.6]} 17... Kxg7 {[%clk 0:02:40.9]} 18. Re1 {[%clk 0:02:14.8]}
18... Bd7 {[%clk 0:02:30]} 19. Nb2 {[%clk 0:02:08.5]} 19... Nxg2 {[%clk
0:02:17.2]} 20. Kxg2 {[%clk 0:02:07.9]} 20... c5 {[%clk 0:02:17.4]} 21. Nf1
{[%clk 0:02:00.3]} 21... a5 {[%clk 0:02:16.6]} 22. Nd1 {[%clk 0:01:54.3]} 22...
Ng8 {[%clk 0:02:15.5]} 23. Nde3 {[%clk 0:01:53.4]} 23... a4 {[%clk 0:02:14.8]}
24. h3 {[%clk 0:01:50.9]} 24... Qf6 {[%clk 0:02:11.4]} 25. Kh2 {[%clk
0:01:44.4]} 25... axb3 {[%clk 0:02:07]} 26. axb3 {[%clk 0:01:43.9]} 26... Ra8
{[%clk 0:02:07.1]} 27. Qb2 {[%clk 0:01:39.4]} 27... Ra3 {[%clk 0:02:00.4]} 28.
Qxf6+ {[%clk 0:01:36.5]} 28... Nxf6 {[%clk 0:01:59.2]} 29. Rb2 {[%clk
0:01:36.7]} 29... Rfa8 {[%clk 0:01:58.6]} 30. Reb1 {[%clk 0:01:36.1]} 30... h6
{[%clk 0:01:54.9]} 31. Nc2 {[%clk 0:01:31.2]} 31... Ra2 {[%clk 0:01:52.1]} 32.
Nfe3 {[%clk 0:01:24]} 32... Kf7 {[%clk 0:01:51.3]} 33. Kg2 {[%clk 0:01:23.1]}
33... g5 {[%clk 0:01:49.1]} 34. Kf2 {[%clk 0:01:21.3]} 34... gxf4 {[%clk
0:01:48.6]} 35. gxf4 {[%clk 0:01:20.8]} 35... Nh5 {[%clk 0:01:48.4]} 36. Ng2
{[%clk 0:01:20.2]} 36... Rxb2 {[%clk 0:01:38]} 37. Rxb2 {[%clk 0:01:19.7]} 37...
Kf6 {[%clk 0:01:35.9]} 38. e3 {[%clk 0:01:08.7]} 38... Be8 {[%clk 0:01:36.1]}
39. Nh4 {[%clk 0:01:02.7]} 39... Ng7 {[%clk 0:01:35.7]} 40. Ke2 {[%clk
0:00:58.6]} 40... Bh5+ {[%clk 0:01:35.4]} 41. Kd2 {[%clk 0:00:58.5]} 41... Ne8
{[%clk 0:01:31.4]} 42. Rb1 {[%clk 0:00:57.1]} 42... Ra2 {[%clk 0:01:24.4]} 43.
Kc1 {[%clk 0:00:56.7]} 43... Be2 {[%clk 0:01:14.4]} 44. Ra1 {[%clk 0:00:55.7]}
44... Rxa1+ {[%clk 0:01:14.6]} 45. Nxa1 {[%clk 0:00:55.2]} 45... Bf1 {[%clk
0:01:15]} 46. Nc2 {[%clk 0:00:47.8]} 46... Bxh3 {[%clk 0:01:11.8]} 47. Kd2
{[%clk 0:00:47.3]} 47... Kg7 {[%clk 0:00:44]} 48. Ne1 {[%clk 0:00:45.1]} 48...
Nf6 {[%clk 0:00:43.5]} 49. Ke2 {[%clk 0:00:41.4]} 49... Ng8 {[%clk 0:00:41.2]}
50. Kf2 {[%clk 0:00:39.6]} 50... Bg4 {[%clk 0:00:39.2]} 51. Neg2 {[%clk
0:00:29.6]} 51... Kf6 {[%clk 0:00:36.6]} 52. Ke1 {[%clk 0:00:28.7]} 52... h5
{[%clk 0:00:36.6]} 53. Kd2 {[%clk 0:00:27.7]} 53... Nh6 {[%clk 0:00:36.7]} 54.
Ne1 {[%clk 0:00:27.1]} 54... Nf7 {[%clk 0:00:35.8]} 55. Neg2 {[%clk 0:00:26.6]}
55... Nd8 {[%clk 0:00:35.6]} 56. Ne1 {[%clk 0:00:25.1]} 56... Nb7 {[%clk
0:00:35.6]} 57. Neg2 {[%clk 0:00:24.9]} 57... Na5 {[%clk 0:00:35.9]} 58. Kc2
{[%clk 0:00:24.8]} 58... Be2 {[%clk 0:00:35.3]} 59. Ne1 {[%clk 0:00:23.1]} 59...
Bf1 {[%clk 0:00:32.5]} 60. Neg2 {[%clk 0:00:19.9]} 60... Nxc4 {[%clk 0:00:29.8]}
61. bxc4 {[%clk 0:00:19.2]} 61... Bxc4 {[%clk 0:00:30.4]} 62. Ne1 {[%clk
0:00:16.9]} 62... Bxd5 {[%clk 0:00:30.4]} 63. Kb2 {[%clk 0:00:17.1]} 63... Bc4
{[%clk 0:00:25.2]} 64. Nc2 {[%clk 0:00:16.9]} 64... Bf1 {[%clk 0:00:25.2]} 65.
Kb3 {[%clk 0:00:17]} 65... Bb5 {[%clk 0:00:21]} 66. Ne1 {[%clk 0:00:15.7]} 66...
d5 {[%clk 0:00:20.6]} 67. Nc2 {[%clk 0:00:15.6]} 67... Be2 {[%clk 0:00:20.4]}
68. Ng2 {[%clk 0:00:14.4]} 68... Bd1 {[%clk 0:00:19.9]} 69. Kb2 {[%clk
0:00:13.8]} 69... Bxc2 {[%clk 0:00:18.4]} 70. Kxc2 {[%clk 0:00:13.8]} 70... d4
{[%clk 0:00:17.7]} 71. exd4 {[%clk 0:00:09.8]} 71... cxd4 {[%clk 0:00:18.6]} 72.
Kb3 {[%clk 0:00:10.1]} 72... d3 {[%clk 0:00:19]} 73. Kxb4 {[%clk 0:00:09.2]}
73... h4 {[%clk 0:00:19.4]} 74. Ne3 {[%clk 0:00:05.3]} 74... h3 {[%clk
0:00:19.5]} 75. Nf1 {[%clk 0:00:05]} 75... d2 {[%clk 0:00:19]} 0-1

[Event "*** SCC Grand Prix: Titled Tuesday Blitz"]
[Site "Chess.com"]
[Date "2020.06.02"]
[Round "5"]
[White "Khayala13"]
[Black "AungTZ"]
[Result "0-1"]
[WhiteElo "2257"]
[BlackElo "1942"]
[TimeControl "180+1"]
[EndTime "11:00:07 PDT"]
[Termination "AungTZ won on time"]

1. e4 {[%clk 0:03:00]} 1... c5 {[%clk 0:02:57.6]} 2. c3 {[%clk 0:02:58.5]} 2...
Nf6 {[%clk 0:02:56.4]} 3. e5 {[%clk 0:02:58.2]} 3... Nd5 {[%clk 0:02:56.6]} 4.
Nf3 {[%clk 0:02:58.9]} 4... Nc6 {[%clk 0:02:55.4]} 5. Bc4 {[%clk 0:02:59.4]}
5... e6 {[%clk 0:02:54.4]} 6. d4 {[%clk 0:02:58.7]} 6... cxd4 {[%clk 0:02:53.9]}
7. cxd4 {[%clk 0:02:59.6]} 7... d6 {[%clk 0:02:53.9]} 8. O-O {[%clk 0:02:59.5]}
8... Be7 {[%clk 0:02:52.3]} 9. Qe2 {[%clk 0:02:59.3]} 9... O-O {[%clk
0:02:51.6]} 10. Bd2 {[%clk 0:02:56]} 10... b6 {[%clk 0:02:48.9]} 11. Nc3 {[%clk
0:02:51.4]} 11... Nxc3 {[%clk 0:02:41.5]} 12. Bxc3 {[%clk 0:02:50.7]} 12... dxe5
{[%clk 0:02:41.2]} 13. dxe5 {[%clk 0:02:51.5]} 13... Bb7 {[%clk 0:02:41.1]} 14.
Rad1 {[%clk 0:02:49.5]} 14... Qc8 {[%clk 0:02:35]} 15. Bb3 {[%clk 0:02:48.9]}
15... Rd8 {[%clk 0:02:30.9]} 16. Rfe1 {[%clk 0:02:45.7]} 16... Rxd1 {[%clk
0:02:27.5]} 17. Rxd1 {[%clk 0:02:39.4]} 17... Qc7 {[%clk 0:02:26.1]} 18. Bc2
{[%clk 0:02:38.8]} 18... Rd8 {[%clk 0:02:22.7]} 19. h3 {[%clk 0:02:35]} 19... a6
{[%clk 0:02:08.8]} 20. Rxd8+ {[%clk 0:02:31.9]} 20... Qxd8 {[%clk 0:02:07.6]}
21. Qe4 {[%clk 0:02:31.5]} 21... g6 {[%clk 0:02:06.3]} 22. h4 {[%clk 0:02:07.7]}
22... b5 {[%clk 0:01:51.2]} 23. h5 {[%clk 0:02:04.8]} 23... b4 {[%clk
0:01:50.4]} 24. Be1 {[%clk 0:01:59.2]} 24... Na5 {[%clk 0:01:38]} 25. Qf4 {[%clk
0:01:49.6]} 25... Qc7 {[%clk 0:01:17.3]} 26. hxg6 {[%clk 0:01:43.1]} 26... hxg6
{[%clk 0:01:14.6]} 27. Bd3 {[%clk 0:01:28.8]} 27... Bxf3 {[%clk 0:01:07.6]} 28.
gxf3 {[%clk 0:01:21.2]} 28... Nc6 {[%clk 0:01:05.2]} 29. Bxa6 {[%clk 0:01:17.4]}
29... Qxe5 {[%clk 0:00:59.8]} 30. Qxe5 {[%clk 0:01:08.8]} 30... Nxe5 {[%clk
0:00:58.9]} 31. Kg2 {[%clk 0:01:09.7]} 31... g5 {[%clk 0:00:58.1]} 32. Bd2
{[%clk 0:01:06.5]} 32... f5 {[%clk 0:00:51.3]} 33. f4 {[%clk 0:01:05.8]} 33...
gxf4 {[%clk 0:00:48.4]} 34. Bxf4 {[%clk 0:01:05.6]} 34... Ng6 {[%clk 0:00:49.3]}
35. Bc1 {[%clk 0:00:59]} 35... Kf7 {[%clk 0:00:47.1]} 36. a3 {[%clk 0:00:56.9]}
36... bxa3 {[%clk 0:00:47]} 37. bxa3 {[%clk 0:00:57.8]} 37... e5 {[%clk
0:00:45.5]} 38. a4 {[%clk 0:00:56.8]} 38... Bb4 {[%clk 0:00:44.5]} 39. Kf3
{[%clk 0:00:53.2]} 39... Kf6 {[%clk 0:00:43.5]} 40. Bb2 {[%clk 0:00:52]} 40...
Ne7 {[%clk 0:00:41.4]} 41. Bb7 {[%clk 0:00:45.5]} 41... Ng6 {[%clk 0:00:40.4]}
42. Ke3 {[%clk 0:00:44.4]} 42... Nf4 {[%clk 0:00:37.6]} 43. f3 {[%clk 0:00:42]}
43... Bc5+ {[%clk 0:00:36.1]} 44. Kd2 {[%clk 0:00:40.8]} 44... Bb4+ {[%clk
0:00:36]} 45. Kc2 {[%clk 0:00:40.4]} 45... Ba5 {[%clk 0:00:34.7]} 46. Kb3 {[%clk
0:00:40.2]} 46... Ke6 {[%clk 0:00:32.6]} 47. Bc8+ {[%clk 0:00:37.1]} 47... Kf6
{[%clk 0:00:31.5]} 48. Kc4 {[%clk 0:00:37.4]} 48... Kg5 {[%clk 0:00:29.1]} 49.
Bxe5 {[%clk 0:00:36.1]} 49... Ne2 {[%clk 0:00:26.6]} 50. Kb5 {[%clk 0:00:32.4]}
50... Bd2 {[%clk 0:00:23]} 51. a5 {[%clk 0:00:29.5]} 51... Be3 {[%clk
0:00:22.8]} 52. a6 {[%clk 0:00:26.7]} 52... Nd4+ {[%clk 0:00:22.1]} 53. Kc4
{[%clk 0:00:12.2]} 53... Nxf3 {[%clk 0:00:20.1]} 54. Bb8 {[%clk 0:00:11.9]}
54... f4 {[%clk 0:00:17.2]} 55. Kd5 {[%clk 0:00:07.9]} 55... Nd2 {[%clk
0:00:16.7]} 56. Kc6 {[%clk 0:00:06.5]} 56... f3 {[%clk 0:00:15.6]} 0-1